fUSD/lending_fUSD_20260116
["ID","MTS","AMOUNT","RATE_DAILY","PERIOD"]
[402208498,1768602644471,-5000.0,0.00016656,2]
[402208499,1768602644479,-500.0,0.00016657,2]
[402208500,1768602644489,-166.66,0.00016658,2]
[402208501,1768602644498,-500.0,0.00016712,2]
[402208502,1768602644507,-15084.69728878,0.00016761,2]
[402208503,1768602644516,-500.0,0.00016767,2]
[402208504,1768602644526,-500.0,0.00016822,2]
[402208505,1768602644535,-999.0,0.00016856,3]
[402208506,1768602644545,-500.0,0.00016876,2]
[402208507,1768602644554,-334.5472959,0.00016926,2]
[402208508,1768602644563,-1239.0,0.00016926,2]
[402208509,1768602644572,-642.94,0.00016926,2]
[402208510,1768602644581,-500.0,0.00016931,2]
[402208511,1768602644591,-3896.39087375,0.00016938,2]
[402208512,1768602644601,-7213.2829481,0.00016938,2]
[402208513,1768602644610,-2000.0,0.00016938,2]
[402208514,1768602644620,-500.0,0.00016938,2]
[402208515,1768602644629,-1733.2975304,0.00016979,2]
[402208516,1768602644638,-500.0,0.00016986,2]
[402208517,1768602644648,-566.80876335,0.0001699,2]
[402208518,1768602644658,-570.35,0.00016991,2]
[402208519,1768602644667,-250.0,0.00017,2]
[402208520,1768602644676,-24505.99823965,0.00017,2]
[402208521,1768602644847,-162.0,0.0001704,2]
[402208522,1768602644857,-500.0,0.00017041,2]
[402208523,1768602644866,-774.0,0.00017049,2]
[402208524,1768602644875,-540.0,0.00017096,2]
[402208525,1768602644884,-156.52,0.00017104,2]
[402208526,1768602644893,-166.66,0.00017144,2]
[402208527,1768602644902,-200.0,0.00017174,2]
[402208528,1768602644911,-500.0,0.00017178,2]
[402208529,1768602644920,-736.0,0.00017193,2]
[402208530,1768602644929,-194.72792766,0.00017201,2]
[402208531,1768602644938,-248.38210406,0.00017201,2]
[402208532,1768602644946,-640.24385345,0.00017201,2]
[402208533,1768602644955,-155.53654206,0.00017286,2]
[402208534,1768602644964,-2859.28,0.00017288,2]
[402208535,1768602644972,-5900.0,0.000173,6]
[402208536,1768602644981,-1000.0,0.000174,2]
[402208537,1768602644990,-7900.0,0.000174,6]
[402208538,1768602644999,-3896.39087375,0.00017419,2]
[402208539,1768602645008,-7213.2829481,0.00017419,2]
[402208540,1768602645016,-1000.0,0.00017424,2]
[402208541,1768602645025,-774.0,0.00017487,2]
[402208542,1768602645034,-2000.0,0.000175,2]
[402208543,1768602645043,-1602.74427831,0.000175,2]
[402208544,1768602645052,-9800.0,0.000175,6]
[402208545,1768602645061,-156.52,0.00017551,2]
[402208546,1768602645070,-14438.53227137,0.00017555,2]
[402208547,1768602645078,-1474.0,0.00017556,2]
[402208548,1768602645087,-774.0,0.00017561,2]
[402208549,1768602645096,-4750.3,0.00017569,2]
[402208550,1768602645105,-1000.0,0.000176,2]
[402208551,1768602645114,-1900.0,0.000176,6]
[402208552,1768602645123,-4750.3,0.00017608,2]
[402208553,1768602645133,-2170.30482224,0.0001764,2]
[402208554,1768602645142,-4750.3,0.00017647,2]
[402208555,1768602645152,-4750.3,0.00017687,2]
[402208556,1768602645162,-1000.0,0.00017698,2]
[402208557,1768602645172,-780.72386047,0.000177,2]
[402208558,1768602645181,-1900.0,0.000177,6]
[402208559,1768602645191,-774.0,0.0001771,2]
[402208560,1768602645200,-169.206885,0.00017723,2]
[402208561,1768602645209,-4750.3,0.00017726,2]
[402208562,1768602645218,-1500.0,0.00017726,7]
[402208563,1768602645229,-600.0,0.00017726,7]
[402208564,1768602645237,-1000.0,0.00017727,2]
[402208565,1768602645246,-150.0,0.00017728,2]
[402208566,1768602645255,-1000.0,0.00017744,2]
[402208567,1768602645264,-201.93286099,0.00017749,2]
[402208568,1768602645273,-663.93287602,0.00017749,2]
[402208569,1768602645282,-165.78988918,0.00017752,7]
[402208570,1768602645291,-292.47301622,0.00017752,7]
[402208571,1768602645300,-437.5221406,0.00017752,7]
[402208572,1768602645310,-591.9804,0.00017752,7]
[402208573,1768602645319,-989.77249293,0.00017753,2]
[402208574,1768602645328,-1000.0,0.00017754,2]
[402208575,1768602645338,-1000.0,0.0001776,2]
[402208576,1768602645347,-4750.3,0.00017765,2]
[402208577,1768602645356,-1000.0,0.00017768,2]
[402208578,1768602645365,-1000.0,0.00017776,2]
[402208579,1768602645374,-1000.0,0.00017782,2]
[402208580,1768602645383,-1000.0,0.00017782,2]
[402208581,1768602645393,-1000.0,0.00017782,2]
[402208582,1768602645402,-1000.0,0.00017782,2]
[402208583,1768602645412,-1000.0,0.00017782,2]
[402208584,1768602645421,-1000.0,0.00017782,2]
[402208585,1768602645430,-588.308,0.00017782,2]
[402208586,1768602645439,-1000.0,0.00017793,2]
[402208587,1768602645448,-800.0,0.00017797,2]
[402208588,1768602645458,-1000.0,0.00017797,2]
[402208589,1768602645467,-1000.0,0.00017798,2]
[402208590,1768602645476,-12868.30948442,0.000178,2]
[402208591,1768602645485,-1000.0,0.000178,2]
[402208592,1768602645495,-1900.0,0.000178,6]
[402208593,1768602645504,-4750.3,0.00017804,2]
[402208594,1768602645513,-1000.0,0.00017805,2]
[402208595,1768602645522,-1000.0,0.00017807,2]
[402208596,1768602645531,-500.0,0.00017808,2]
[402208597,1768602645541,-440.0,0.00017808,2]
[402208598,1768602645550,-150.0,0.00017809,2]
[402208599,1768602645560,-150.0,0.00017809,2]
[402208600,1768602645570,-1000.0,0.0001781,2]
[402208601,1768602645580,-1000.0,0.00017814,2]
[402208602,1768602645590,-150.0,0.00017821,2]
[402208603,1768602645599,-150.0,0.00017823,2]
[402208604,1768602645610,-253.49,0.00017832,2]
[402208605,1768602645620,-1474.0,0.00017836,2]
[402208606,1768602645629,-4750.3,0.00017843,2]
[402208607,1768602645638,-1000.0,0.00017847,2]
[402208608,1768602645648,-1000.0,0.00017854,2]
[402208609,1768602645658,-200.0,0.00017855,2]
[402208610,1768602645667,-253.49,0.00017855,2]
[402208611,1768602645676,-200.0,0.00017856,2]
[402208612,1768602645686,-200.0,0.00017856,2]
[402208613,1768602645695,-200.0,0.00017856,2]
[402208614,1768602645704,-1000.0,0.00017856,2]
[402208615,1768602645714,-155.53654206,0.00017863,2]
[402208616,1768602645723,-500.0,0.00017863,2]
[402208617,1768602645732,-440.0,0.00017863,2]
[402208618,1768602645741,-1000.0,0.00017866,2]
[402208619,1768602645751,-1000.0,0.00017866,2]
[402208620,1768602645761,-1000.0,0.00017869,2]
[402208621,1768602645774,-253.48312968,0.00017878,2]
[402208622,1768602645784,-1000.0,0.00017881,2]
[402208623,1768602645794,-4750.3,0.00017882,2]
[402208624,1768602645803,-1000.0,0.00017883,2]
[402208625,1768602645814,-1000.0,0.00017886,2]
[402208626,1768602645824,-150.0,0.0001789,2]
[402208627,1768602645836,-150.0,0.00017892,2]
[402208629,1768602645846,-33212.9972,0.000179,2]
[402208631,1768602645857,-10000.0,0.000179,2]
[402208633,1768602645867,-182843.39442831,0.000179,2]
[402208635,1768602645876,-3896.39087375,0.000179,2]
[402208637,1768602645887,-1900.0,0.000179,6]
[402208638,1768602645897,-7213.2829481,0.000179,2]
[402208639,1768602645907,-1694.33819335,0.000179,2]
[402208640,1768602645916,-11111.21371389,0.000179,2]
[402208641,1768602645927,-914.16040645,0.000179,2]
[402208642,1768602645938,-19437.66591942,0.000179,2]
[402208643,1768602645948,-10843.0,0.000179,2]
[402208644,1768602645959,-150.0,0.00017901,3]
[402208645,1768602645968,-1000.0,0.00017903,2]
[402208646,1768602645977,-1000.0,0.00017905,2]
[402208647,1768602645987,-1000.0,0.00017908,2]
[402208648,1768602645996,-150.0,0.00017912,2]
[402208649,1768602646005,-1000.0,0.00017913,2]
[402208650,1768602646016,-150.0,0.00017916,3]
[402208651,1768602646026,-500.0,0.00017918,2]
[402208652,1768602646036,-440.0,0.00017918,2]
[402208653,1768602646048,-1000.0,0.0001792,2]
[402208654,1768602646058,-1000.0,0.00017921,2]
[402208655,1768602646067,-4750.3,0.00017922,2]
[402208656,1768602646076,-500.0,0.00017925,2]
[402208657,1768602646085,-250.0,0.00017932,2]
[402208658,1768602646095,-1000.0,0.00017945,2]
[402208659,1768602646105,-1474.0,0.00017947,2]
[402208660,1768602646115,-1000.0,0.00017957,2]
[402208661,1768602646124,-4750.3,0.00017961,2]
[402208662,1768602646134,-1000.0,0.00017964,2]
[402208663,1768602646145,-500.0,0.0001797,2]
[402208664,1768602646154,-700.0,0.0001797,2]
[402208665,1768602646163,-500.0,0.0001797,2]
[402208666,1768602646173,-700.0,0.0001797,2]
[402208667,1768602646182,-500.0,0.0001797,2]
[402208668,1768602646191,-700.0,0.0001797,2]
[402208669,1768602646202,-500.0,0.0001797,2]
[402208670,1768602646214,-1100.0,0.0001797,2]
[402208671,1768602646225,-500.0,0.0001797,2]
[402208672,1768602646234,-500.0,0.0001797,2]
[402208673,1768602646244,-313.81295263,0.0001797,2]
[402208674,1768602646254,-250.11298687,0.0001797,2]
[402208675,1768602646264,-1000.0,0.00017971,2]
[402208676,1768602646273,-1000.0,0.00017972,2]
[402208677,1768602646282,-161.53790585,0.00017972,2]
[402208678,1768602646292,-440.0,0.00017972,2]
[402208679,1768602646301,-14603.0,0.00017973,2]
[402208680,1768602646310,-30478.0,0.00017973,2]
[402208681,1768602646320,-500.0,0.00017973,2]
[402208682,1768602646329,-500.0,0.00017973,2]
[402208683,1768602646339,-197.50988777,0.00017973,2]
[402208684,1768602646348,-372.89690242,0.00017973,2]
[402208685,1768602646358,-500.0,0.00017973,2]
[402208686,1768602646367,-500.0,0.00017973,2]
[402208687,1768602646376,-150.0,0.00017973,2]
[402208688,1768602646385,-150.0,0.0001799,2]
[402208689,1768602646395,-566.80876335,0.0001799,2]
[402208690,1768602646404,-566.80876335,0.0001799,2]
[402208691,1768602646414,-1000.0,0.00017996,2]
[402208692,1768602646423,-150.0,0.00017996,2]
[402208693,1768602646432,-169.206885,0.00017997,2]
[402208694,1768602646441,-150.0,0.00017999,2]
[402208695,1768602646451,-277.95886969,0.00017999,2]
[402208696,1768602646460,-13662.58833208,0.00017999,2]
[402208697,1768602646469,-500.0,0.00017999,2]
[402208698,1768602646479,-500.0,0.00017999,2]
[402208699,1768602646489,-574.96731124,0.00017999,2]
[402208700,1768602646498,-300.0,0.00017999,2]
[402208701,1768602646508,-666.0,0.00017999,2]
[402208702,1768602646519,-300.0,0.00017999,2]
[402208703,1768602646529,-1577871.60646533,0.00018,2]
[402208704,1768602646538,-3549719.72260374,0.00018,2]
[402208705,1768602646547,-150.0,0.00018,2]
[402208706,1768602646556,-1412.60765073,0.00018,2]
[402208707,1768602646565,-150.0,0.00018,2]
[402208708,1768602646574,-6705.27242765,0.00018,2]
[402208709,1768602646583,-150.0,0.00018,2]
[402208710,1768602646592,-885.17605849,0.00018,2]
[402208711,1768602646602,-193.8,0.00018,2]
[402208712,1768602646611,-300.0,0.00018,2]
[402208713,1768602646621,-194.18,0.00018,7]
[402208714,1768602646630,-200.0,0.00018,2]
[402208715,1768602646639,-152.0,0.00018,2]
[402208716,1768602646648,-1268.0,0.00018,2]
[402208717,1768602646658,-412.0,0.00018,2]
[402208718,1768602646667,-1000.0,0.00018,2]
[402208719,1768602646676,-151.0,0.00018,2]
[402208720,1768602646685,-151.0,0.00018,2]
[402208721,1768602646694,-152.0,0.00018,2]
[402208722,1768602646703,-152.0,0.00018,2]
[402208723,1768602646713,-1263.0,0.00018,2]
[402208724,1768602646722,-152.0,0.00018,2]
[402208725,1768602646731,-152.0,0.00018,2]
[402208726,1768602646740,-151.0,0.00018,2]
[402208727,1768602646749,-151.0,0.00018,2]
[402208728,1768602646758,-151.0,0.00018,2]
[402208729,1768602646772,-151.0,0.00018,2]
[402208730,1768602646781,-316.243141,0.00018,2]
[402208731,1768602646790,-316.243141,0.00018,2]
[402208732,1768602646800,-316.243141,0.00018,2]
[402208733,1768602646810,-316.243141,0.00018,2]
[402208734,1768602646819,-244587.70725366,0.00018,2]
[402208735,1768602648899,-349.0,0.00018,2]
[402208736,1768602648957,-467.9684,0.00018,2]
[402208737,1768602648974,-1155.26977686,0.00018,2]
[402208738,1768602648992,-507.74382377,0.00018,2]
[402208740,1768602650414,-1323.042121,0.00018,2]
[402208741,1768602972598,2197.66,7.985e-05,2]
[402208742,1768602972784,2197.66,8.405e-05,2]
[402208743,1768602972986,2197.66,8.825e-05,2]
[402208744,1768602973198,2197.66,9.246e-05,2]
[402208745,1768602973410,1209.37,9.666e-05,2]
[402208746,1768602973436,988.29,9.666e-05,2]
[402208747,1768602974140,2197.66,0.00010086,2]
[402208748,1768602974209,2197.66,0.00010506,2]
[402208749,1768602974338,2197.66,0.00010927,2]
[402208750,1768602974667,2197.66,0.00011347,2]
[402208751,1768602974935,221.08,0.00011767,2]
[402208752,1768602974961,1976.58,0.00011767,2]
[402208753,1768602975045,2197.66,0.00012187,2]
[402208754,1768602975213,247.82912495,0.00012608,2]
[402208755,1768602975238,1949.83087505,0.00012608,2]
[402208756,1768602975324,2197.66,0.00013028,2]
[402208757,1768602978155,-155.04733483,0.00013448,2]
[402208758,1768602981169,-180.03490705,0.00013448,2]
[402208759,1768602982797,-306.68591141,0.00013448,2]
[402208760,1768602985478,-303.46838859,0.00013448,2]
[402208761,1768602986926,-242.21679347,0.00013448,2]
[402208762,1768602989314,-430.90662136,0.00013448,2]
[402208763,1768602991529,-292.25437611,0.00013448,2]
[402208764,1768602993106,-179.3342065,0.00013448,2]
[402208765,1768603028988,736.044676,0.00013381,2]
[402208766,1768603042890,-107.71146068,0.00013448,2]
[402208767,1768603042914,-87.28853932,0.00013509,2]
[402208768,1768603045206,-162.71146068,0.00013509,2]
[402208769,1768603045229,-189.11388298,0.0001357,2]
[402208770,1768603047827,-243.715591,0.0001357,2]
[402208771,1768603058440,-434.17052602,0.0001357,2]
[402208772,1768603058464,-131.92022962,0.0001357,2]
[402208773,1768603061621,-818.24543962,0.0001357,2]
[402208774,1768603064483,-249.83433076,0.0001357,2]
[402208775,1768603064506,-105.84184272,0.00013571,2]
[402208776,1768603067440,-231.6824366,0.00013571,2]
[402208777,1768603069883,-195.53814828,0.00013571,2]
[402208778,1768603072012,-157.96251503,0.00013571,2]
[402208779,1768603238010,-215.36640458,0.0001357,2]
[402208780,1768603242801,-84.63359542,0.0001357,2]
[402208781,1768603242834,-91.47770541,0.0001357,2]
[402208782,1768603245949,-154.25,0.0001357,2]
[402208783,1768603247831,-553.79181485,0.0001357,2]
[402208784,1768603250061,-248.61363329,0.0001357,2]
[402208785,1768603253703,-151.63403555,0.0001357,2]
[402208786,1768603257538,-0.2328109,0.0001357,2]
[402208787,1768603257560,-249.7671891,0.0001357,2]
[402208788,1768603389055,-12.2328109,0.0001357,2]
[402208789,1768603389083,-279.05258059,0.0001357,2]
[402208790,1768603390664,-20.94741941,0.0001357,2]
[402208791,1768603390687,-226.20347497,0.0001357,2]
[402208792,1768603393159,-73.79652503,0.0001357,2]
[402208793,1768603393182,-91.95901704,0.0001357,2]
[402208794,1768603394857,-158.04098296,0.0001357,2]
[402208795,1768603394880,-63.82586886,0.00013571,2]
[402208796,1768603396382,-298.28661049,0.00013571,2]
[402208797,1768603398636,-300.0,0.00013571,2]
[402208798,1768603400255,-177.9353373,0.00013571,2]
[402208799,1768603404441,-204.00360989,0.00013571,2]
[402208800,1768603494586,-195.0,0.00013571,2]
[402208801,1768603496615,-258.59322349,0.00013571,2]
[402208802,1768603499732,-267.30783199,0.00013571,2]
[402208803,1768603503060,-258.59322348,0.0001357,2]
[402208804,1768603642968,-341.0058,0.0001357,2]
[402208805,1768603648848,-600.40097652,0.0001357,2]
[402208806,1768603648881,-300.0,0.0001357,2]
[402208807,1768603648912,-300.0,0.0001357,2]
[402208808,1768603649478,-8541.44249591,0.00013571,2]
[402208809,1768603649633,-4348.62082056,0.00013571,2]
[402208810,1768603649667,-1302.76835888,0.00013571,2]
[402208811,1768603745351,-151.0,0.00013571,2]
[402208812,1768603745382,-151.0,0.00013571,2]
[402208821,1768603832436,151.0,0.00013571,2]
[402208822,1768603833573,-199.757061,0.0001358,2]
[402208823,1768603833583,-250.0,0.00013639,2]
[402208824,1768603833592,-411.67920625,0.00013697,2]
[402208825,1768603833603,-288.10200457,0.00013697,2]
[402208826,1768603833614,-500.21878918,0.00013697,2]
[402208827,1768603833623,-51.80496584,0.00013698,2]
[402208828,1768603833781,-448.19503416,0.00013698,2]
[402208829,1768603833794,-500.0,0.00013698,2]
[402208830,1768603833804,-500.0,0.00013698,2]
[402208831,1768603833813,-500.0,0.00013698,2]
[402208832,1768603833822,-300.0,0.00013866,2]
[402208833,1768603833832,-300.0,0.00013867,2]
[402208834,1768603833843,-750.0,0.00013867,2]
[402208835,1768603833852,-2197.66,0.00013868,2]
[402208836,1768603833862,-153.41,0.00013898,2]
[402208837,1768603833871,-150.0,0.00013898,2]
[402208838,1768603833881,-152.13538667,0.00014196,2]
[402208839,1768603833890,-1906.2843,0.000142,2]
[402208840,1768603833900,-3974.0595,0.000142,2]
[402208841,1768603833910,-150.0,0.00014228,2]
[402208842,1768603833919,-542.89957297,0.00014228,2]
[402208843,1768603833928,-945.96972194,0.00014228,2]
[402208844,1768603833938,-945.96972194,0.00014228,2]
[402208845,1768603833948,-945.96972194,0.00014228,2]
[402208846,1768603833957,-945.96972194,0.00014228,2]
[402208847,1768603833967,-945.96972194,0.00014228,2]
[402208848,1768603833978,-945.96972194,0.00014228,2]
[402208849,1768603833987,-945.96972194,0.00014228,2]
[402208850,1768603833997,-945.96972195,0.00014228,2]
[402208851,1768603834006,-945.96972195,0.00014228,2]
[402208852,1768603834016,-945.96972195,0.00014228,2]
[402208853,1768603834026,-945.96972195,0.00014228,2]
[402208854,1768603834036,-945.96972195,0.00014228,2]
[402208855,1768603834045,-945.96972195,0.00014228,2]
[402208856,1768603834055,-945.96972195,0.00014228,2]
[402208857,1768603834064,-945.96972195,0.00014228,2]
[402208858,1768603834074,-14553.29000128,0.0001423,2]
[402208859,1768603834086,-2279.85668093,0.0001423,2]
[402208860,1768603834098,-4452.66369481,0.0001423,2]
[402208861,1768603834109,-685.05324315,0.0001423,2]
[402208862,1768603834186,-24667.07637983,0.0001423,2]
[402208863,1768603834197,-2197.66,0.00014289,2]
[402208864,1768603834209,-200.0,0.00014289,2]
[402208865,1768603834218,-151.0,0.00014289,2]
[402208866,1768603834227,-151.0,0.00014289,2]
[402208867,1768603834237,-151.0,0.00014289,2]
[402208868,1768603834247,-151.0,0.00014289,2]
[402208869,1768603834256,-151.0,0.00014289,2]
[402208870,1768603834266,-151.0,0.00014289,2]
[402208871,1768603834275,-151.0,0.00014289,2]
[402208872,1768603834284,-151.0,0.00014289,2]
[402208873,1768603834294,-151.0,0.00014289,2]
[402208874,1768603834304,-151.0,0.00014289,2]
[402208875,1768603834313,-151.0,0.00014289,2]
[402208876,1768603834322,-151.0,0.00014289,2]
[402208877,1768603834332,-151.0,0.00014289,2]
[402208878,1768603834341,-151.0,0.00014289,2]
[402208879,1768603834350,-151.0,0.00014289,2]
[402208880,1768603834360,-151.0,0.00014289,2]
[402208881,1768603834370,-500.0,0.00014289,2]
[402208882,1768603834379,-369.51952417,0.00014289,2]
[402208883,1768603834388,-151.0,0.00014289,2]
[402208884,1768603834397,-151.0,0.00014289,2]
[402208885,1768603834406,-151.0,0.00014289,2]
[402208886,1768603834415,-151.0,0.00014289,2]
[402208887,1768603834426,-151.0,0.00014289,2]
[402208888,1768603834435,-151.0,0.00014289,2]
[402208889,1768603834447,-151.0,0.00014289,2]
[402208890,1768603834458,-151.0,0.00014289,2]
[402208891,1768603834467,-151.0,0.00014289,2]
[402208892,1768603834477,-151.0,0.00014289,2]
[402208893,1768603834486,-151.0,0.00014289,2]
[402208894,1768603834495,-20029.95246448,0.000143,2]
[402208895,1768603834506,-1500.0,0.00014397,2]
[402208896,1768603834515,-297.91447198,0.00014515,2]
[402208897,1768603834525,-500.0,0.00014515,2]
[402208898,1768603834535,-306.94949313,0.00014515,2]
[402208899,1768603834545,-500.0,0.00014515,2]
[402208900,1768603834555,-233.36794637,0.00014515,2]
[402208901,1768603834565,-8465.42,0.00014516,2]
[402208902,1768603834574,-365.54817999,0.00014562,2]
[402208903,1768603834584,-964.68743052,0.00014562,2]
[402208904,1768603834593,-1701.82297549,0.00014562,2]
[402208905,1768603834602,-2545.82539199,0.00014562,2]
[402208906,1768603834611,-3444.5862,0.00014562,2]
[402208907,1768603834621,-500.0,0.00014565,2]
[402208908,1768603834630,-2197.66,0.00014709,2]
[402208909,1768603834639,-405.0,0.00014746,2]
[402208910,1768603834648,-557.48405346,0.00014837,2]
[402208911,1768603834657,-250.0,0.00014928,2]
[402208912,1768603834667,-195.0,0.00014938,2]
[402208913,1768603834676,-250.0,0.00014938,2]
[402208914,1768603834684,-1680.0,0.00015067,2]
[402208915,1768603834693,-2197.66,0.00015129,2]
[402208916,1768603834702,-420.0,0.00015193,2]
[402208917,1768603834712,-420.0,0.00015195,2]
[402208918,1768603834721,-150.0,0.00015312,2]
[402208919,1768603834730,-150.0,0.00015312,2]
[402208920,1768603834739,-150.0,0.00015312,2]
[402208921,1768603834748,-255.0,0.00015352,2]
[402208922,1768603834758,-150.0,0.00015367,2]
[402208923,1768603834767,-150.0,0.00015367,2]
[402208924,1768603834776,-150.0,0.00015367,2]
[402208925,1768603834786,-407.39,0.00015397,2]
[402208926,1768603834795,-260.24699511,0.00015422,2]
[402208927,1768603834804,-150.0,0.00015422,2]
[402208928,1768603834813,-150.0,0.00015422,2]
[402208929,1768603834822,-150.0,0.00015476,2]
[402208930,1768603834831,-150.0,0.00015476,2]
[402208931,1768603834842,-150.0,0.00015531,2]
[402208932,1768603834851,-150.0,0.00015531,2]
[402208933,1768603834861,-2197.66,0.00015549,2]
[402208934,1768603834871,-405.0,0.00015565,2]
[402208935,1768603834881,-250.0,0.00015586,2]
[402208936,1768603834890,-250.0,0.00015586,2]
[402208937,1768603834899,-3859.82336213,0.0001587,2]
[402208938,1768603834909,-30955.18152585,0.00015913,2]
[402208939,1768603834922,-364.72373208,0.00015913,2]
[402208940,1768603835345,234.27098692,0.00013571,2]
[402208942,1768603838238,-500.0,0.00014227,2]
[402208943,1768603838248,-151.0,0.00015267,2]
[402208944,1768603838257,-9591.15576679,0.00015913,2]
[402208945,1768603838268,-1538.66320084,0.00015913,2]
[402208946,1768603838397,-571.60999962,0.00015913,2]
[402208947,1768603838422,-2878.12978853,0.00015913,2]
[402209091,1768603840868,-1.7e-07,0.00015267,2]
[402209092,1768603840929,-150.99999983,0.00015267,2]
[402209093,1768603840939,-366.22590506,0.00015913,2]
[402209094,1768603840971,-320.21505209,0.00015913,2]
[402209095,1768603840982,-349.99471567,0.00015913,2]
[402209096,1768603840994,-294.08503367,0.00015913,2]
[402209097,1768603841025,-112689.9452798,0.00015913,2]
[402209098,1768603841035,-174.61919141,0.00015923,2]
[402209099,1768603841044,-1000.0,0.00015923,2]
[402209100,1768603841054,-721.12765535,0.00015923,2]
[402209101,1768603841063,-1000.0,0.00015923,2]
[402209102,1768603841072,-322.6107,0.00015923,2]
[402209103,1768603841082,-1000.0,0.00015923,2]
[402209104,1768603841091,-9000.0,0.00015923,2]
[402209105,1768603841101,-151.0,0.00015923,2]
[402209106,1768603841110,-1000.0,0.00015923,2]
[402209107,1768603841126,-1000.0,0.00015923,2]
[402209108,1768603841135,-1000.0,0.00015923,2]
[402209109,1768603841144,-1000.0,0.00015923,2]
[402209110,1768603841154,-330.28989389,0.00015923,2]
[402209111,1768603841165,-1239.0,0.00015923,2]
[402209112,1768603841174,-500.0,0.00015923,2]
[402209113,1768603841184,-500.0,0.00015923,2]
[402209114,1768603841193,-250.0,0.00015923,2]
[402209115,1768603841204,-250.0,0.00015923,2]
[402209116,1768603841213,-250.0,0.00015923,2]
[402209117,1768603841222,-250.0,0.00015923,2]
[402209118,1768603841235,-250.0,0.00015923,2]
[402209119,1768603841246,-578.20924308,0.00015923,2]
[402209120,1768603841255,-250.0,0.00015923,2]
[402209121,1768603841265,-500.0,0.00015923,2]
[402209122,1768603841275,-250.0,0.00015923,2]
[402209123,1768603841285,-500.0,0.00015923,2]
[402209124,1768603841297,-250.0,0.00015923,2]
[402209125,1768603841307,-500.0,0.00015923,2]
[402209126,1768603841318,-250.0,0.00015923,2]
[402209127,1768603841331,-500.0,0.00015923,2]
[402209128,1768603841340,-250.0,0.00015923,2]
[402209129,1768603841350,-500.0,0.00015923,2]
[402209130,1768603841360,-250.0,0.00015923,2]
[402209131,1768603841370,-500.0,0.00015923,2]
[402209132,1768603841379,-500.0,0.00015923,2]
[402209133,1768603841389,-2000.0,0.00015923,2]
[402209134,1768603841398,-620.0,0.00015923,2]
[402209135,1768603841407,-958.82692039,0.00015923,2]
[402209136,1768603841417,-2000.0,0.00015923,2]
[402209137,1768603841426,-2000.0,0.00015923,2]
[402209138,1768603841435,-2000.0,0.00015923,2]
[402209139,1768603841445,-2000.0,0.00015923,2]
[402209140,1768603841454,-2000.0,0.00015923,2]
[402209141,1768603841463,-2000.0,0.00015923,2]
[402209142,1768603841472,-2000.0,0.00015923,2]
[402209143,1768603841482,-2000.0,0.00015923,2]
[402209144,1768603841491,-2000.0,0.00015923,2]
[402209145,1768603841500,-2000.0,0.00015923,2]
[402209146,1768603841509,-574.12855637,0.00015923,2]
[402209147,1768603841521,-2197.66,0.0001597,2]
[402209148,1768603841530,-3859.82336208,0.00016096,2]
[402209149,1768603841540,-1000.0,0.00016121,2]
[402209150,1768603841549,-3859.82336208,0.00016321,2]
[402209151,1768603841561,-500.0,0.00016356,2]
[402209152,1768603841570,-600.0,0.00016356,2]
[402209153,1768603841579,-1500.0,0.00016356,2]
[402209154,1768603841588,-405.0,0.00016384,2]
[402209155,1768603841597,-622.09393551,0.00016393,2]